Workbook

Sheet IDL
A1: CALIFORNIA STATE CONTROLLER'S OFFICE IDL SUPPLEMENTATION CALCULATOR - 2024 | J1: COMPUTED FIELDS | R1: Look up Retire Data | V1: SS % | W1: MED % | X1: SDI % | AH1: FEDERAL INCOME TAX EXEMPTION | AM1: STATE INCOME TAX
A2: Salary Information | G2: EFF. 7/1/2024 | J2: Gross Net | K2: =ROUND(SUM(K3:K5),2) -> 0 | M2: Regular Pay | R2: SS/Med | S2: =VLOOKUP(RETIREMENT_ID,RETID_TABLE,4,FALSE) -> SS | T2: MED% | U2: =IF(OR(S2="MED",S2="SS"),MD_,0) -> 0.0145 | V2: 0.062 | W2: 0.0145 | X2: 0.011 | AH2: 4300 | AM2: ADDITIONAL ALLOWANCES
A3: Original Salary Rate | B3: 4000 | C3: Reduced Sal Rate | F3: Salary Per | G3: M | H3: (M or H) | J3: Reg Net | K3: =ROUND(IF(Salary_Per="H",REDUCED_SALARY*HOURS_OF_REGULAR_PAY,(REDUCED_SALARY/PAYPERIOD_HOURS)*HOURS_OF_REGULAR_PAY),2) -> 0 | M3: =REG_PAY_WITHHOLDING -> 0 | N3: Ret. Withholding | R3: Exl amt | S3: =IF(OR(PayFreq="M", PayFreq="S"),VLOOKUP(RETIREMENT_ID,RETID_TABLE,3,FALSE),(VLOOKUP(RETIREMENT_ID,RETID_TABLE,3,FALSE)*12)/26) -> 513 | T3: MED | U3: =ROUND(Gross_Net_OPEB*MED_,2) -> 0 | AM3: 1000
A4: Collective Bargaining Unit | B4: R01 | C4: (R01-R021, U) | J4: IDL Full | K4: =ROUND(IF(Salary_Per="H",Salary_Rate*HOURS_IDL_FULL,(SALARY/PAYPERIOD_HOURS)*HOURS_IDL_FULL),2) -> 0 | M4: =ROUND(Reg_Net_Grs_OPEB*OASDI_,2) -> 0 | N4: SS | R4: Percent | S4: =VLOOKUP(RETIREMENT_ID,RETID_TABLE,2,FALSE) -> 0.08 | T4: SS% | U4: =IF(S2="SS",OA_,0) -> 0.062 | Z4: RETID_TABLE | AE4: OPEB_TABLE | AI4: SINGLE
A5: OPEB CBID | B5: R01 | J5: IDL 2/3 | K5: =(ROUND(IF(Salary_Per="H",Salary_Rate*HOURS_IDL_23,(SALARY/PAYPERIOD_HOURS)*HOURS_IDL_23),2)) -> 0 | M5: =ROUND(Reg_Net_Grs_OPEB*MED_,2) -> 0 | N5: Med | T5: SS | U5: =ROUND(Gross_Net_OPEB*OASDI_,2) -> 0 | Z5: AC | AA5: EE Rate | AB5: Excl. | AC5: SS/Med | AE5: OPEB CBID | AF5: EE Rate | AH5: BASE AMT | AI5: PERCENT | AJ5: BASE TAX | AL5: LOW INCOME TAX EXEMPTION
A6: Pay Frequency (M, S, or B) | B6: M | C6: Pay Period Days | D6: 22 | F6: (21/22) | J6: PP Hours | K6: =IF(ISBLANK(Time_Base_Fraction),PAYPERIOD_DAYS*8,PAYPERIOD_DAYS*8*TIMEBASE) -> 176 | M6: =IF(SDI="yes",Reg_Net_Grs_OPEB*X2,0) -> 0 | N6: SDI | T6: OPEB Rate | U6: =VLOOKUP(OPEB_AC,OPEB_TABLE,2,FALSE) -> 0.03 | Z6: 00 | AA6: 0.06 | AB6: 317 | AC6: NO | AE6: C01 | AF6: 0.03 | AH6: -999999 | AI6: 0 | AJ6: 0 | AM6: --- MARRIED --- | AO6: HEAD OF
A7: Time Base Fraction | C7: Locked-in Pay Not | E7: Subj to Retirement | J7: Org Hr Rate | K7: =IF(Salary_Per="H",ROUND(Salary_Rate,5),ROUND(SALARY/PAYPERIOD_HOURS,5)) -> 22.72727 | M7: =ROUND(REG_PAY_SUBJ_RETIREMENT*OPEB_rate,2) -> 0 | N7: Reg. OPEB | T7: OPEB Amt | U7: =Reg_OPEB+IDL_OPEB+IDL_23_OPEB -> 0 | Z7: 01 | AA7: 0.0375 | AB7: 0 | AC7: NO | AE7: C02 | AF7: 0.014 | AH7: 6000 | AI7: 0.1 | AJ7: 0 | AL7: SINGLE | AM7: 0 or 1 | AN7: 2 or more | AO7: HOUSEHOLD
A8: Retirement/SDI Information | Z8: 02 | AA8: 0 | AB8: 0 | AC8: NO | AE8: C03 | AF8: 0.03 | AH8: 17600 | AI8: 0.12 | AJ8: 1160 | AL8: 17769 | AM8: 17769 | AN8: 35538 | AO8: 35538
A9: Retirement ID | B9: 45 | C9: Pay Period | D9: 7 | E9: / | F9: 23 | J9: Gross Net - OPEB | K9: =ROUND(SUM(K10:K12),2) -> 0 | M9: IDL Full | R9: Supplementation Data | Z9: 03 | AA9: 0.0375 | AB9: 0 | AC9: SS | AE9: C04 | AF9: 0.03 | AH9: 53150 | AI9: 0.22 | AJ9: 5426
A10: Apply Exclusion Amt | C10: (Yes, No, Blank) | D10: (MM) | F10: (YY) | J10: Reg Net - OPEB | K10: =ROUND(IF(Salary_Per="H",REDUCED_SALARY*HOURS_OF_REGULAR_PAY,(REDUCED_SALARY/PAYPERIOD_HOURS)*HOURS_OF_REGULAR_PAY),2)-Reg_OPEB -> 0 | M10: =IDL_FULL_PAY_WITHHOLDING -> 0 | N10: Ret. Withholding | Z10: 04 | AA10: 0.0375 | AB10: 0 | AC10: SS | AE10: C05 | AF10: 0.034 | AH10: 106525 | AI10: 0.24 | AJ10: 17168.5 | AL10: STANDARD DEDUCTION TABLE
A11: (for Semimonthly only) | J11: IDL Full - OPEB | K11: =ROUND(IF(Salary_Per="H",Salary_Rate*HOURS_IDL_FULL,(SALARY/PAYPERIOD_HOURS)*HOURS_IDL_FULL),2)-IDL_OPEB -> 0 | M11: =IF(IDL_Full_OPEB=0,0,ROUND(M23-Reg_SS,2)) -> 0 | N11: SS | R11: Sup Full | S11: =Supple_Gross_Net/Divided_By -> 0 | Z11: 05 | AA11: 0.095 | AB11: 513 | AC11: SS | AE11: C06 | AF11: 0.04 | AH11: 197950 | AI11: 0.32 | AJ11: 39110.5 | AM11: --- MARRIED --- | AO11: HEAD OF
A12: SDI | B12: =IF(LEFT(CBID,1)="R",VLOOKUP(CBID,SDI_CBID,2),"NO") -> YES | J12: IDL 2/3 - OPEB | K12: =(ROUND(IF(Salary_Per="H",Salary_Rate*HOURS_IDL_23,(SALARY/PAYPERIOD_HOURS)*HOURS_IDL_23),2))-IDL_23_OPEB -> 0 | M12: =IF(IDL_Full_OPEB=0,0,ROUND(M24-Reg_Med,2)) -> 0 | N12: Med | R12: Hours | S12: =ROUND(Grs_Full_Supple/Org_Hr_Rate,0) -> 0 | Z12: 06 | AA12: 0.01 | AB12: 317 | AC12: MED | AE12: C07 | AF12: 0.04 | AH12: 249725 | AI12: 0.35 | AJ12: 55678.5 | AL12: SINGLE | AM12: 0 or 1 | AN12: 2 or more | AO12: HOUSEHOLD
A13: Federal/State Tax Information | D13: =LEFT(X7,10) ->  | E13: =Y7 -> 0 | M13: =IF(IDL_Full_OPEB=0,0,ROUND(M25-FTAX2,2)) -> 0 | N13: Fed | R13: Days | S13: =IF(Salary_Per="H",0,ROUNDDOWN(S12/Time_Base_Hrs,0)) -> 0 | Z13: 07 | AA13: 0.125 | AB13: 513 | AC13: SS | AE13: C08 | AF13: 0.039 | AH13: 615350 | AI13: 0.37 | AJ13: 183647.25 | AL13: 5363 | AM13: 5363 | AN13: 10726 | AO13: 10726
A14: Federal Filing Status | B14: M | C14: Fed Exemptions | D14: 0 | E14: (M, S) (1-99) | M14: =IF(IDL_Full_OPEB=0,0,ROUND(M26-STAX2,2)) -> 0 | N14: State | R14: Hours | S14: =IF(Salary_Per="H",S12,S12-(S13*Time_Base_Hrs)) -> 0 | Z14: 08 | AA14: 0.05 | AB14: 513 | AC14: SS | AE14: C09 | AF14: 0.02
A15: Federal HW | C15: Fed Claim Deps | M15: =IF(IDL_Full_OPEB=0,0,ROUND(M27-Reg_SDI,2)) -> 0 | N15: SDI | Z15: 09 | AA15: 0.08 | AB15: 513 | AC15: SS | AE15: C10 | AF15: 0.021 | AL15: ------- SINGLE --------
A16: Federal Other Income | C16: Fed Deductions | M16: =SUM(M11:M15) -> 0 | N16: Total | U16: EMPCR% | V16: =VLOOKUP(CBID,U17:V40,2,FALSE) -> 0 | Z16: 0A | AA16: 0.085 | AB16: 513 | AC16: SS | AE16: C11 | AF16: 0.03 | AI16: MARRIED | AL16: BASE AMT | AM16: PERCENT | AN16: BASE TAX
A17: State Marital Status | B17: M | C17: Reg Allowances | D17: 0 | E17: (M, S, H) (1-99) | M17: =IF(IDL_Full=0,0,ROUND(IDL_Full-M16,2)) -> 0 | N17: IDL Full Grs | U17: R01 | V17: 0 | Z17: 0B | AA17: 0.085 | AB17: 513 | AC17: SS | AE17: C12 | AF17: 0.036 | AH17: BASE AMT | AI17: PERCENT | AJ17: BASE TAX | AL17: 0 | AM17: 0.011 | AN17: 0
A18: Additional State Allowances (1-99) | C18: Iss Mon and Yr | D18: 8 | E18: 1 | F18: 23 | G18: (1-99) | J18: Reg Time | K18: =(Reg_Days*Time_Base_Hrs)+Reg_Hrs -> 0 | M18: =ROUND(IDL_FULL_PAY*OPEB_rate,2) -> 0 | N18: IDL OPEB | U18: R02 | V18: 0 | Z18: 0C | AA18: 0.085 | AB18: 513 | AC18: SS | AE18: C13 | AF18: 0.035 | AH18: -999999 | AI18: 0 | AJ18: 0 | AL18: 10412 | AM18: 0.022 | AN18: 114.53
D19: (MM) | F19: (YY) | J19: IDL F Time | K19: =(IDL_Full_Days*Time_Base_Hrs)+IDL_Full_Hrs -> 0 | U19: R03 | V19: 0 | Z19: 0D | AA19: 0.0875 | AB19: 513 | AC19: SS | AE19: C14 | AF19: 0.03 | AH19: 16300 | AI19: 0.1 | AJ19: 0 | AL19: 24684 | AM19: 0.044 | AN19: 428.51
A20: Time for | B20: Days | C20: Hours | J20: IDL 2/3 Time | K20: =(IDL_23_Days*Time_Base_Hrs)+IDL_23_Hrs -> 0 | M20: IDL 2/3 | U20: R04 | V20: 0 | Z20: 0E | AA20: 0.085 | AB20: 513 | AC20: SS | AE20: C15 | AF20: 0.03 | AH20: 39500 | AI20: 0.12 | AJ20: 2320 | AL20: 38959 | AM20: 0.066 | AN20: 1056.61
A21: Regular Pay | J21: Total Time | K21: =HOURS_OF_REGULAR_PAY+HOURS_IDL_FULL+HOURS_IDL_23 -> 0 | M21: =IDL_23_PAY_WITHHOLDING -> 0 | N21: Ret. Withholding | U21: R05 | V21: 0 | Z21: 0F | AA21: 0.085 | AB21: 513 | AC21: SS | AE21: C16 | AF21: 0.014 | AH21: 110600 | AI21: 0.22 | AJ21: 10852 | AL21: 54081 | AM21: 0.088 | AN21: 2054.66
A22: IDL Full Pay | J22: EPMC% | K22: =+S4+V16 -> 0.08 | M22: =IF(IDL_Full=0,0,REG_RETIREMENT_WH+IDL_FULL_RETIREMENT_WH) -> 0 | N22: EPMC Reg+IDL F | U22: R06 | V22: 0 | Z22: 0G | AA22: 0.085 | AB22: 513 | AC22: SS | AE22: C17 | AF22: 0.03 | AH22: 217350 | AI22: 0.24 | AJ22: 34337 | AL22: 68350 | AM22: 0.1023 | AN22: 3310.33
A23: IDL 2/3 Pay | J23: EPMC | K23: =ROUND(REG_RETIREMENT_WH+IDL_FULL_RETIREMENT_WH+IDL_23_RETIREMENT_WH,2) -> 0 | M23: =IF(IDL_Full=0,0,ROUND((Reg_Net_Grs_OPEB+IDL_Full_OPEB)*OASDI_,2)) -> 0 | N23: SS Reg+IDL F | U23: R07 | V23: 0 | Z23: 0H | AA23: 0.085 | AB23: 513 | AC23: SS | AE23: C18 | AF23: 0.045 | AH23: 400200 | AI23: 0.32 | AJ23: 78221 | AL23: 349137 | AM23: 0.1133 | AN23: 32034.84
M24: =IF(IDL_Full=0,0,ROUND((Reg_Net_Grs_OPEB+IDL_Full_OPEB)*MED_,2)) -> 0 | N24: Med Reg+IDL F | U24: R08 | V24: 0 | Z24: 10 | AA24: 0.06 | AB24: 317 | AC24: NO | AE24: C19 | AF24: 0.03 | AH24: 503750 | AI24: 0.35 | AJ24: 111357 | AL24: 418961 | AM24: 0.1243 | AN24: 39945.9
B25: Full Net | C25: Regular | D25: IDL Full | F25: IDL 2/3 | M25: =FTAX3 -> 0 | N25: Fed Reg+IDL F | U25: R09 | V25: 0 | Z25: 11 | AA25: 0.01 | AB25: 317 | AC25: NO | AE25: C20 | AF25: 0.03 | AH25: 747500 | AI25: 0.37 | AJ25: 196669.5 | AL25: 698271 | AM25: 0.1353 | AN25: 74664.13
A26: Gross | B26: =Gross_Net -> 0 | C26: =Reg_Net_Grs -> 0 | D26: =IDL_Grs -> 0 | F26: =IDL_23_Grs -> 0 | J26: SDI1 | K26: =IF(SDI="Yes",SDIGRS*X2,0) -> 0 | M26: =STAX3 -> 0 | N26: State Reg+IDL F | R26: SDI CBID | U26: R10 | V26: 0 | Z26: 12 | AA26: 0.06 | AB26: 317 | AC26: MED | AE26: C21 | AF26: 0.03 | AL26: 1000000 | AM26: 0.1463 | AN26: 115488.06
A27: Retirement | B27: =EPMC -> 0 | C27: =REG_RETIREMENT_WH -> 0 | D27: =IDL_FULL_RETIREMENT_WH -> 0 | F27: =IDL_23_RETIREMENT_WH -> 0 | J27: SDIGRS | K27: =Gross_Net_OPEB -> 0 | M27: =IF(OR(IDL_Full=0,SDI="NO"),0,(ROUND((Reg_Net_Grs_OPEB+IDL_Full_OPEB)*X2,2))) -> 0 | N27: SDI Reg+IDL F | R27: R01 | S27: YES | U27: R11 | V27: 0 | Z27: 13 | AA27: 0.0375 | AB27: 0 | AC27: MED | AE27: E01 | AF27: 0.03 | AL27: 9999999 | AM27: 0.1463 | AN27: 115488.06
A28: OPEB | B28: =OPEB_amt -> 0 | C28: =Reg_OPEB -> 0 | D28: =IDL_OPEB -> 0 | F28: =IDL_23_OPEB -> 0 | M28: =ROUND((IDL_2_3/3)*2,2) -> 0 | N28: IDL 2/3 Grs | R28: R02 | S28: NO | U28: R12 | V28: 0 | Z28: 14 | AA28: 0 | AB28: 0 | AC28: NO | AE28: E02 | AF28: 0.014 | AI28: HEAD OF HOUSEHOLD
A29: Social Security | B29: =OASDI -> 0 | C29: =Reg_SS -> 0 | J29: PP Days | K29: =IF(Days_in_Pay_Period=22,22,21) -> 22 | M29: =ROUND(IDL_23_PAY*OPEB_rate,2) -> 0 | N29: IDL 2/3 OPEB | R29: R03 | S29: YES | U29: R13 | V29: 0 | Z29: 15 | AA29: 0.06 | AB29: 238 | AC29: NO | AE29: E03 | AF29: 0.03 | AH29: BASE AMT | AI29: PERCENT | AJ29: BASE TAX | AL29: ------- MARRIED --------
A30: Medicare | B30: =MED -> 0 | C30: =Reg_Med -> 0 | J30: Timebase | K30: =IF(ISBLANK(Time_Base_Fraction),1,Time_Base_Fraction) -> 1 | R30: R04 | S30: YES | U30: R14 | V30: 0 | Z30: 16 | AA30: 0.06 | AB30: 238 | AC30: MED | AE30: E04 | AF30: 0.03 | AH30: -999999 | AI30: 0 | AJ30: 0 | AL30: BASE AMT | AM30: PERCENT | AN30: BASE TAX
A31: Federal Tax | B31: =FTAX1 -> 0 | C31: =FTAX2 -> 0 | J31: Time Base Hrs | K31: =IF(ISBLANK(Time_Base_Fraction),8,8*Time_Base_Fraction) -> 8 | M31: Regular Pay | N31: =ROUND(IF(Salary_Per="H",REDUCED_SALARY*HOURS_OF_REGULAR_PAY,(REDUCED_SALARY/PAYPERIOD_HOURS)*HOURS_OF_REGULAR_PAY),2) -> 0 | R31: R05 | S31: NO | U31: R15 | V31: 0 | Z31: 17 | AA31: 0.06 | AB31: 317 | AC31: MED | AE31: E05 | AF31: 0.034 | AH31: 13300 | AI31: 0.1 | AJ31: 0 | AL31: 0 | AM31: 0.011 | AN31: 0
A32: State Tax | B32: =STAX1 -> 0 | C32: =STAX2 -> 0 | J32: Salary | K32: =IF(Salary_Per="H",Salary_Rate,Salary_Rate*TIMEBASE) -> 4000 | M32: Reg. Pay Subj. to Ret. | N32: =IF(Salary_Per="H",RED_SAL_NOT_LOCKED*HOURS_OF_REGULAR_PAY,ROUND((RED_SAL_NOT_LOCKED/PAYPERIOD_HOURS),5)*HOURS_OF_REGULAR_PAY) -> 0 | R32: R06 | S32: NO | U32: R16 | V32: 0 | Z32: 18 | AA32: 0.06 | AB32: 317 | AC32: NO | AE32: E06 | AF32: 0.04 | AH32: 29850 | AI32: 0.12 | AJ32: 1655 | AL32: 20824 | AM32: 0.022 | AN32: 229.06
A33: SDI Withheld | B33: =_SDI1 -> 0 | C33: =Reg_SDI -> 0 | J33: Reduced Salary | K33: =IF(HAS_REDUCED_SALARY=FALSE,SALARY,ROUND(Red_Sal_Rate*TIMEBASE,2)) -> 4000 | M33: Reg. Pay Exclusion | N33: =IF(REG_PAY_SUBJ_RETIREMENT>EXCLUSION,EXCLUSION,REG_PAY_SUBJ_RETIREMENT) -> 0 | R33: R07 | S33: NO | U33: R17 | V33: 0 | Z33: 19 | AA33: 0.11 | AB33: 317 | AC33: MED | AE33: E07 | AF33: 0.04 | AH33: 76400 | AI33: 0.22 | AJ33: 7241 | AL33: 49368 | AM33: 0.044 | AN33: 857.03
A34: Gross Net | B34: =ROUND(B26-(ROUND(SUM(B27:B33),2)),2) -> 0 | C34: =ROUND(C26-(SUM(C27:C33)),2) -> 0 | D34: =ROUND(D26-D27-D28,2) -> 0 | F34: =ROUND(F26-F27-F28,2) -> 0 | J34: Red. Sal. Not Locked | K34: =REDUCED_SALARY-Locked_in_Pay -> 4000 | M34: Reg. Pay Withholding | N34: =IF(REG_PAY_SUBJ_RETIREMENT>EXCLUSION,(REG_PAY_SUBJ_RETIREMENT-EXCLUSION)*EPMC_P,0) -> 0 | R34: R08 | S34: NO | U34: R18 | V34: 0 | Z34: 1A | AA34: 0.07 | AB34: 317 | AC34: NO | AE34: E08 | AF34: 0.039 | AH34: 113800 | AI34: 0.24 | AJ34: 15469 | AL34: 77918 | AM34: 0.066 | AN34: 2113.23
A35: Hourly Rate Used for Calc: | B35: =Org_Hr_Rate -> 22.72727 | J35: Retirement Sal Rate | K35: =SALARY-Locked_in_Pay -> 4000 | M35: Reg. Pay Exclusion Remaining | N35: =EXCLUSION-REG_PAY_EXCLUSION -> 513 | R35: R09 | S35: NO | U35: R19 | V35: 0 | Z35: 1B | AA35: 0.11 | AB35: 317 | AC35: NO | AE35: E09 | AF35: 0.02 | AH35: 205250 | AI35: 0.32 | AJ35: 37417 | AL35: 108162 | AM35: 0.088 | AN35: 4109.33
A36: Supplementation Gross Net: | B36: =IF(ROUND(Full_Net-(SUM(C34:F34)),2)<0,0,ROUND(Full_Net-(SUM(C34:F34)),2)) -> 0 | C36: Divided By | D36: =Withhold_Factor -> 0.6375 | F36: = | G36: =ROUND(Supple_Gross_Net/Divided_By,2) -> 0 | J36: Total Exclusion | K36: =IF(APPLY_EXCLUSION=TRUE,RET_EXCLUSION_AMT,0) -> 513 | R36: R10 | S36: NO | U36: R20 | V36: 0 | Z36: 1C | AA36: 0.11 | AB36: 317 | AC36: MED | AE36: E10 | AF36: 0.021 | AH36: 257000 | AI36: 0.35 | AJ36: 53977 | AL36: 136700 | AM36: 0.1023 | AN36: 6620.67
A37: Gross for Full Supplementation: | B37: =S11 -> 0 | J37: Apply Exclusion? | K37: =IF(OR(PayFreq<>"S",LEFT(Ret_SM_Exl_Apply,1)="Y"),TRUE, FALSE) -> TRUE | M37: IDL Full Pay | N37: =IF(Salary_Per="H",RETIREMENT_SALARY_RATE*HOURS_IDL_FULL,RETIREMENT_SALARY_RATE/PAYPERIOD_HOURS*HOURS_IDL_FULL) -> 0 | R37: R11 | S37: YES | U37: R21 | V37: 0 | Z37: 1D | AA37: 0.11 | AB37: 317 | AC37: MED | AE37: E11 | AF37: 0.03 | AH37: 622650 | AI37: 0.37 | AJ37: 181954.5 | AL37: 698274 | AM37: 0.1133 | AN37: 64069.69
A38: Leave Credit Hours Required for Full Supplementation: | D38: =S12 -> 0 | J38: Reduced Salary? | K38: =IF(OR(ISBLANK(Red_Sal_Rate),Red_Sal_Rate<=0),FALSE, TRUE) -> FALSE | M38: IDL Full Pay Exclusion | N38: =IF(IDL_FULL_PAY>N35,N35,IDL_FULL_PAY) -> 0 | R38: R12 | S38: NO | U38: C | V38: 0 | Z38: 1E | AA38: 0.11 | AB38: 317 | AC38: NO | AE38: E12 | AF38: 0.036 | AL38: 837922 | AM38: 0.1243 | AN38: 79891.81
A39: Days: | B39: =S13 -> 0 | C39: Hours: | D39: =S14 -> 0 | M39: IDL Full Pay Withhold. | N39: =IF(IDL_FULL_PAY>IDL_FULL_PAY_EXCLUSION,(IDL_FULL_PAY-IDL_FULL_PAY_EXCLUSION)*EPMC_P,0) -> 0 | R39: R13 | S39: NO | U39: SD | V39: 0 | Z39: 1F | AA39: 0.11 | AB39: 317 | AC39: MED | AE39: E13 | AF39: 0.035 | AI39: SINGLE HIGH WAGE | AL39: 1000000 | AM39: 0.1353 | AN39: 100038.11
H40: rev. 7/16/24 | M40: IDL Full Pay Exclusion Remain. | N40: =N35-IDL_FULL_PAY_EXCLUSION -> 513 | R40: R14 | S40: YES | U40: U | V40: 0 | Z40: 1G | AA40: 0.11 | AB40: 317 | AC40: NO | AE40: E14 | AF40: 0.03 | AH40: BASE AMT | AI40: PERCENT | AJ40: BASE TAX | AL40: 1396542 | AM40: 0.1463 | AN40: 153690.24
R41: R15 | S41: YES | Z41: 1H | AA41: 0.11 | AB41: 317 | AC41: NO | AE41: E15 | AF41: 0.03 | AH41: -999999 | AI41: 0 | AJ41: 0 | AL41: 9999999 | AM41: 0.1463 | AN41: 153690.24
M42: IDL 2/3 Pay | N42: =IF(Salary_Per="H",RETIREMENT_SALARY_RATE*HOURS_IDL_23,RETIREMENT_SALARY_RATE/PAYPERIOD_HOURS*HOURS_IDL_23) -> 0 | R42: R16 | S42: NO | Z42: 1J | AA42: 0.11 | AB42: 317 | AC42: MED | AE42: E16 | AF42: 0.014 | AH42: 7300 | AI42: 0.1 | AJ42: 0
C43: GENERAL INSTRUCTIONS | M43: IDL 2/3 Pay Exclusion | N43: =IF(IDL_23_PAY>N40,N40,IDL_23_PAY) -> 0 | R43: R17 | S43: YES | Z43: 1K | AA43: 0.11 | AB43: 317 | AC43: MED | AE43: E17 | AF43: 0.03 | AH43: 13100 | AI43: 0.12 | AJ43: 580 | AL43: UNMARRIED HEAD OF HOUSEHOLD
M44: IDL 2/3 Pay Withhold. | N44: =IF(IDL_23_PAY>IDL_23_PAY_EXCLUSION,(IDL_23_PAY-IDL_23_PAY_EXCLUSION)*EPMC_P,0) -> 0 | R44: R18 | S44: NO | Z44: 1L | AA44: 0.11 | AB44: 317 | AC44: NO | AE44: E18 | AF44: 0.045 | AH44: 30875 | AI44: 0.22 | AJ44: 2713 | AL44: BASE AMT | AM44: PERCENT | AN44: BASE TAX
A45: This spreadsheet can be used to calculate the Industrial Disability Leave Supplementation (IDL/S) for | M45: IDL 2/3 Pay Exclusion Remain. | N45: =N40-IDL_23_PAY_EXCLUSION -> 513 | R45: R19 | S45: NO | Z45: 1M | AA45: 0.105 | AB45: 0 | AC45: MED | AE45: E19 | AF45: 0.03 | AH45: 57563 | AI45: 0.24 | AJ45: 8584.25 | AL45: 0 | AM45: 0.011 | AN45: 0
A46: Civil Service employees paid monthly or semi-monthly for a specific tax year. All fields are LOCKED | R46: R20 | S46: YES | Z46: 1P | AA46: 0.11 | AB46: 317 | AC46: MED | AE46: E20 | AF46: 0.03 | AH46: 103275 | AI46: 0.32 | AJ46: 19555.25 | AL46: 20839 | AM46: 0.022 | AN46: 229.23
A47: except input fields. User either the keyboard "TAB" button or "ARROWS" buttons to move between | J47: Tax Eff 1/1/18 | R47: R21 | S47: YES | Z47: 1Q | AA47: 0.105 | AB47: 317 | AC47: NO | AE47: E21 | AF47: 0.03 | AH47: 129163 | AI47: 0.35 | AJ47: 27839.25 | AL47: 49371 | AM47: 0.044 | AN47: 856.93
A48: input fields. | J48: TXGRS1 | K48: =ROUND(Gross_Net_OPEB-EPMC,2) -> 0 | L48: <Gross | Z48: 1R | AA48: 0.11 | AB48: 317 | AC48: NO | AE48: E48 | AF48: 0.024 | AH48: 311975 | AI48: 0.37 | AJ48: 91823.63 | AL48: 63644 | AM48: 0.066 | AN48: 1484.94
J49: TXGRS2 | K49: =(Reg_Net_Grs_OPEB-REG_RETIREMENT_WH) -> 0 | L49: <Reg Grs | S49: Mandatory Withhold Factor | Z49: 1S | AA49: 0.11 | AB49: 317 | AC49: MED | AE49: E50 | AF49: 0.024 | AL49: 78765 | AM49: 0.088 | AN49: 2482.93
A50: Specific entry instructions: | J50: TXGRS3 | K50: =(Reg_Net_Grs_OPEB+IDL_Full_OPEB)-M22 -> 0 | L50: <Reg+IDL Grs | T50: =SUMPRODUCT((R52:R63=S2)*(S52:S63=Fed_Exempt)*(T52:T63=State_Exempt)*(U52:U63)) -> 0.6375 | Z50: 1T | AA50: 0.11 | AB50: 317 | AC50: NO | AE50: E58 | AF50: 0.024 | AL50: 93037 | AM50: 0.1023 | AN50: 3738.87
J51: TXGRS4 | K51: =Salary_Rate -> 4000 | L51: <Not in use | R51: SS/MED | S51: Fed Exempt | T51: State Exempt | U51: Factor | Z51: 1U | AA51: 0.06 | AB51: 317 | AC51: MED | AE51: E59 | AF51: 0.024 | AI51: MARRIED | AL51: 474824 | AM51: 0.1133 | AN51: 42795.68
A52: Salary Rate: Enter the Employee's salary rate in effect for the pay period to be paid. The salary rate should | J52: TXGRS5 | K52: =Salary_Rate -> 4000 | L52: <Not in use | Q52: SS/Med | R52: SS | S52: FALSE | T52: FALSE | U52: 0.6375 | Z52: 1V | AA52: 0.11 | AB52: 317 | AC52: MED | AE52: E67 | AF52: 0.024 | AH52: BASE AMT | AI52: PERCENT | AJ52: BASE TAX | AL52: 569790 | AM52: 0.1243 | AN52: 53555.33
A53: reflect any locked-in premiums or shift differential pay that can be included in the IDL calculations. | J53: TXGRS6 | K53: =Salary_Rate -> 4000 | L53: <Not in use | Q53: Med only | R53: MED | S53: FALSE | T53: FALSE | U53: 0.6995 | Z53: 1W | AA53: 0.11 | AB53: 317 | AC53: NO | AE53: E68 | AF53: 0.024 | AH53: -999999 | AI53: 0 | AJ53: 0 | AL53: 949649 | AM53: 0.1353 | AN53: 100771.8
Q54: Neither | R54: NO | S54: FALSE | T54: FALSE | U54: 0.714 | Z54: 1X | AA54: 0.11 | AB54: 317 | AC54: MED | AE54: E77 | AF54: 0.024 | AH54: 14600 | AI54: 0.1 | AJ54: 0 | AL54: 1000000 | AM54: 0.1463 | AN54: 107584.29
A55: For positive employees, enter the hourly salary rate. | J55: FEDERAL TAX | Q55: SS/Med | R55: SS | S55: TRUE | T55: TRUE | U55: 0.9235 | Z55: 1Y | AA55: 0.135 | AB55: 317 | AC55: NO | AE55: E78 | AF55: 0.024 | AH55: 26200 | AI55: 0.12 | AJ55: 1160 | AL55: 9999999 | AM55: 0.1463 | AN55: 107584.29
A56: For negative employees, enter the monthly salary rate. For BU18 employees enter the monthly salary. | J56: PAYFACT | K56: =IF(PayFreq="M",12,IF(PayFreq="S",24,IF(PayFreq="B",26,0))) -> 12 | M56: =IF(AND(FedHW="Y",FEDM="M"),"A",IF(AND(FedHW="Y",FEDM="S"),"I",IF(AND(FedHW="Y",FEDM="H"),"E",FEDM))) -> M | Q56: Med only | R56: MED | S56: TRUE | T56: TRUE | U56: 0.9855 | Z56: 1Z | AA56: 0.135 | AB56: 317 | AC56: MED | AE56: E79 | AF56: 0.024 | AH56: 61750 | AI56: 0.22 | AJ56: 5426
A57: For fractional employees, enter the full salary rate. | J57: FED EXM | K57: =IF(AND(FedHW="N",FEDM="M"),(FEDEXMPT1*3),IF(AND(FedHW="N",FEDM<>"M"),(FEDEXMPT1*2),IF(FedHW="",(FEDEXMPT1*FEDE),"0"))) -> 0 | Q57: Neither | R57: NO | S57: TRUE | T57: TRUE | U57: 1 | Z57: 20 | AA57: 0.1 | AB57: 317 | AC57: MED | AE57: E88 | AF57: 0.023 | AH57: 115125 | AI57: 0.24 | AJ57: 17168.5 | AL57: --- TAX CREDIT TABLE ----
A58: Key a decimal to reflect cents. | J58: ANNUALIZED GROSS | Q58: SS/Med | R58: SS | S58: FALSE | T58: TRUE | U58: 0.7035 | Z58: 21 | AA58: 0 | AB58: 0 | AC58: MED | AE58: E89 | AF58: 0.023 | AH58: 206550 | AI58: 0.32 | AJ58: 39110.5 | AL58: MARITAL | AM58: ------- NUMBER OF ALLOWANCES ----
J59: FAN1 | K59: =(PAYFACT*_TG1) -> 0 | Q59: Med only | R59: MED | S59: FALSE | T59: TRUE | U59: 0.7655 | Z59: 22 | AA59: 0 | AB59: 0 | AC59: MED | AE59: E97 | AF59: 0.024 | AH59: 258325 | AI59: 0.35 | AJ59: 55678.5 | AL59: STATUS | AM59: 0 | AN59: 1 | AO59: 2 | AP59: OVER 2
A60: Reduced Salary Rate: Enter the salary rate based on the furlough reductions. | J60: FAN2 | K60: =ROUND(PAYFACT*_TG2,2) -> 0 | Q60: Neither | R60: NO | S60: FALSE | T60: TRUE | U60: 0.78 | Z60: 23 | AA60: 0.06 | AB60: 317 | AC60: MED | AE60: E98 | AF60: 0.024 | AH60: 380200 | AI60: 0.37 | AJ60: 98334.75 | AL60: SINGLE | AM60: 0 | AN60: 158.4 | AO60: 316.8 | AP60: 158.4
J61: FAN3 | K61: =(PAYFACT*_TG3) -> 0 | Q61: SS/Med | R61: SS | S61: TRUE | T61: FALSE | U61: 0.8575 | Z61: 24 | AA61: 0.08 | AB61: 513 | AC61: SS | AE61: E99 | AF61: 0.024 | AL61: MAR/HEAD | AM61: 0 | AN61: 158.4 | AO61: 316.8 | AP61: 158.4
A62: Salary Per: Enter "M" if salary rate is monthly or "H" if salary rate is hourly. | J62: FAN4 | K62: =(PAYFACT*_TG4) -> 48000 | Q62: Med only | R62: MED | S62: TRUE | T62: FALSE | U62: 0.9195 | Z62: 25 | AA62: 0.125 | AB62: 513 | AC62: SS | AE62: M01 | AF62: 0.03 | AI62: HEAD OF HOUSEHOLD
J63: FAN5 | K63: =(PAYFACT*_TG5) -> 48000 | Q63: Neither | R63: NO | S63: TRUE | T63: FALSE | U63: 0.934 | Z63: 27 | AA63: 0.08 | AB63: 513 | AC63: SS | AE63: M02 | AF63: 0.014 | AH63: BASE AMT | AI63: PERCENT | AJ63: BASE TAX
A64: Collective Bargaining Unit: Using the employee's personnel information enter the first three digits | J64: FAN6 | K64: =(PAYFACT*_TG6) -> 48000 | Z64: 2A | AA64: 0.11 | AB64: 317 | AC64: NO | AE64: M03 | AF64: 0.03 | AH64: -999999 | AI64: 0 | AJ64: 0
A65: of the employees' Collective Bargaining Identification designation (not the Pay Scales CBID) - example: R01, | R65: Exempt | Z65: 2B | AA65: 0.11 | AB65: 317 | AC65: MED | AE65: M04 | AF65: 0.03 | AH65: 10950 | AI65: 0.1 | AJ65: 0
A66: R02, R15, etc.). Exception: For Managers, Supervisors, Excluded and Confidential employee, enter "U". | J66: TAXABLE GROSS | Q66: Federal | R66: =IF(OR(FEDE=99,FEDM="E"),TRUE,FALSE) -> FALSE | Z66: 2C | AA66: 0.1 | AB66: 513 | AC66: SS | AE66: M05 | AF66: 0.034 | AH66: 19225 | AI66: 0.12 | AJ66: 827.5
J67: FTG1 | K67: =MAX(IF(FedHW<>"",(_FAN1-FEDEXM-Fed_Deds+Fed_Oth_Inc),(_FAN1-FEDEXM)),0) -> 0 | Q67: State | R67: =IF(STE=99,TRUE,FALSE) -> FALSE | Z67: 2D | AA67: 0.1 | AB67: 513 | AC67: SS | AE67: M06 | AF67: 0.04 | AH67: 42500 | AI67: 0.22 | AJ67: 3620.5
A68: Pay Frequency: Enter "M" for monthly, "S" for semimonthly, or "B" for bi-weekly pay frequency. | J68: FTG2 | K68: =MAX(IF(FedHW<>"",(K60-FEDEXM-Fed_Deds+Fed_Oth_Inc),(K60-FEDEXM)),0) -> 0 | Z68: 2E | AA68: 0.095 | AB68: 513 | AC68: SS | AE68: M07 | AF68: 0.04 | AH68: 61200 | AI68: 0.24 | AJ68: 7734.5
J69: FTG3 | K69: =MAX(IF(FedHW<>"",(K61-FEDEXM-Fed_Deds+Fed_Oth_Inc),(K61-FEDEXM)),0) -> 0 | Z69: 2F | AA69: 0.1 | AB69: 513 | AC69: SS | AE69: M08 | AF69: 0.039 | AH69: 106925 | AI69: 0.32 | AJ69: 18708.5
A70: Pay Period Days: Enter total number of days in the pay period (21 or 22). | J70: FTG4 | K70: =MAX(IF(FedHW<>"",(K62-FEDEXM-Fed_Deds+Fed_Oth_Inc),(K62-FEDEXM)),0) -> 48000 | Z70: 2G | AA70: 0.095 | AB70: 513 | AC70: SS | AE70: M09 | AF70: 0.02 | AH70: 132800 | AI70: 0.35 | AJ70: 26988.5
J71: FTG5 | K71: =MAX(IF(FedHW<>"",(K63-FEDEXM-Fed_Deds+Fed_Oth_Inc),(K63-FEDEXM)),0) -> 48000 | Z71: 2H | AA71: 0.1 | AB71: 513 | AC71: SS | AE71: M10 | AF71: 0.021 | AH71: 315625 | AI71: 0.37 | AJ71: 90977.25
A72: Time Base Fraction: Used only for FRACTIONAL time base employees, otherwise leave the | J72: FTG6 | K72: =MAX(IF(FedHW<>"",(K64-FEDEXM-Fed_Deds+Fed_Oth_Inc),(K64-FEDEXM)),0) -> 48000 | Z72: 2I | AA72: 0.08 | AB72: 513 | AC72: SS | AE72: M11 | AF72: 0.03
A73: Time Base field blank. Fractions may be entered with or without leading zeros - examples 001/002 or 1/2. | Z73: 2J | AA73: 0.1 | AB73: 513 | AC73: SS | AE73: M12 | AF73: 0.036
J74: BASE AMOUNT | Z74: 2K | AA74: 0.09 | AB74: 317 | AC74: NO | AE74: M13 | AF74: 0.035
A75: Total Locked-In Pay NOT Subject to Retirement: Enter the total locked-in premium amount NOT | J75: FBSA1 | K75: =IF(FEDM_HW="M",VLOOKUP(_FTG1,FTXTBLM,1),IF(FEDM_HW="A",VLOOKUP(_FTG1,FTXTBLMHW,1),IF(FEDM_HW="S",VLOOKUP(_FTG1,FTXTBLSH,1),IF(FEDM_HW="I",VLOOKUP(_FTG1,FTXTBLSHW,1),IF(FEDM_HW="H",VLOOKUP(_FTG1,FTXBLH,1),IF(FEDM_HW="E",VLOOKUP(_FTG1,FTXTBLHHW,1))))))) -> -999999 | Z75: 2L | AA75: 0.1 | AB75: 513 | AC75: SS | AE75: M14 | AF75: 0.03
A76: subject to retirement for the pay period. Leave blank if the employee does not have a locked-in | J76: FBSA2 | K76: =IF(FEDM_HW="M",VLOOKUP(_FTG2,FTXTBLM,1),IF(FEDM_HW="A",VLOOKUP(_FTG2,FTXTBLMHW,1),IF(FEDM_HW="S",VLOOKUP(_FTG2,FTXTBLSH,1),IF(FEDM_HW="I",VLOOKUP(_FTG2,FTXTBLSHW,1),IF(FEDM_HW="H",VLOOKUP(_FTG2,FTXBLH,1),IF(FEDM_HW="E",VLOOKUP(_FTG2,FTXTBLHHW,1))))))) -> -999999 | Z76: 2M | AA76: 0.08 | AB76: 513 | AC76: SS | AE76: M15 | AF76: 0.03
A77: premium pay amount not subject to retirement. | J77: FBSA3 | K77: =IF(FEDM_HW="M",VLOOKUP(_FTG3,FTXTBLM,1),IF(FEDM_HW="A",VLOOKUP(_FTG3,FTXTBLMHW,1),IF(FEDM_HW="S",VLOOKUP(_FTG3,FTXTBLSH,1),IF(FEDM_HW="I",VLOOKUP(_FTG3,FTXTBLSHW,1),IF(FEDM_HW="H",VLOOKUP(_FTG3,FTXBLH,1),IF(FEDM_HW="E",VLOOKUP(_FTG3,FTXTBLHHW,1))))))) -> -999999 | Z77: 2N | AA77: 0.08 | AB77: 0 | AC77: SS | AE77: M16 | AF77: 0.014
J78: FBSA4 | K78: =IF(FEDM_HW="M",VLOOKUP(_FTG4,FTXTBLM,1),IF(FEDM_HW="A",VLOOKUP(_FTG4,FTXTBLMHW,1),IF(FEDM_HW="S",VLOOKUP(_FTG4,FTXTBLSH,1),IF(FEDM_HW="I",VLOOKUP(_FTG4,FTXTBLSHW,1),IF(FEDM_HW="H",VLOOKUP(_FTG4,FTXBLH,1),IF(FEDM_HW="E",VLOOKUP(_FTG4,FTXTBLHHW,1))))))) -> 39500 | Z78: 2O | AA78: 0.125 | AB78: 513 | AC78: SS | AE78: M17 | AF78: 0.03
A79: Retirement Account Code: Enter the two digits Account Code/Retirement ID for the employee's | J79: FBSA5 | K79: =IF(FEDM_HW="M",VLOOKUP(_FTG5,FTXTBLM,1),IF(FEDM_HW="A",VLOOKUP(_FTG5,FTXTBLMHW,1),IF(FEDM_HW="S",VLOOKUP(_FTG5,FTXTBLSH,1),IF(FEDM_HW="I",VLOOKUP(_FTG5,FTXTBLSHW,1),IF(FEDM_HW="H",VLOOKUP(_FTG5,FTXBLH,1),IF(FEDM_HW="E",VLOOKUP(_FTG5,FTXTBLHHW,1))))))) -> 39500 | Z79: 2P | AA79: 0.085 | AB79: 513 | AC79: SS | AE79: M18 | AF79: 0.045
A80: retirement plan in effect for the pay period being calculated. For Excluded/Exempts employee's use "U". | J80: FBSA6 | K80: =IF(FEDM_HW="M",VLOOKUP(_FTG6,FTXTBLM,1),IF(FEDM_HW="A",VLOOKUP(_FTG6,FTXTBLMHW,1),IF(FEDM_HW="S",VLOOKUP(_FTG6,FTXTBLSH,1),IF(FEDM_HW="I",VLOOKUP(_FTG6,FTXTBLSHW,1),IF(FEDM_HW="H",VLOOKUP(_FTG6,FTXBLH,1),IF(FEDM_HW="E",VLOOKUP(_FTG6,FTXTBLHHW,1))))))) -> 39500 | Z80: 2Q | AA80: 0.1 | AB80: 317 | AC80: NO | AE80: M19 | AF80: 0.03
A81: NOTE: The appropriate Social Security and Medicare amounts will be calculated based on the | Z81: 2R | AA81: 0.08 | AB81: 513 | AC81: SS | AE81: M20 | AF81: 0.03
A82: retirement account code provided. | J82: MARGINAL TAX RATE | Z82: 2S | AA82: 0.09 | AB82: 317 | AC82: NO | AE82: M21 | AF82: 0.03
J83: FMTR1 | K83: =IF(FEDM_HW="M",VLOOKUP(_FTG1,FTXTBLM,2),IF(FEDM_HW="A",VLOOKUP(_FTG1,FTXTBLMHW,2),IF(FEDM_HW="S",VLOOKUP(_FTG1,FTXTBLSH,2),IF(FEDM_HW="I",VLOOKUP(_FTG1,FTXTBLSHW,2),IF(FEDM_HW="H",VLOOKUP(_FTG1,FTXBLH,2),IF(FEDM_HW="E",VLOOKUP(_FTG1,FTXTBLHHW,2))))))) -> 0 | Z83: 2T | AA83: 0.09 | AB83: 317 | AC83: MED | AE83: NON | AF83: 0
A84: Pay Period: Enter the month and year of the pay period for which pay is being calculated. | J84: FMTR2 | K84: =IF(FEDM_HW="M",VLOOKUP(_FTG2,FTXTBLM,2),IF(FEDM_HW="A",VLOOKUP(_FTG2,FTXTBLMHW,2),IF(FEDM_HW="S",VLOOKUP(_FTG2,FTXTBLSH,2),IF(FEDM_HW="I",VLOOKUP(_FTG2,FTXTBLSHW,2),IF(FEDM_HW="H",VLOOKUP(_FTG2,FTXBLH,2),IF(FEDM_HW="E",VLOOKUP(_FTG2,FTXTBLHHW,2))))))) -> 0 | Z84: 2U | AA84: 0.06 | AB84: 317 | AC84: NO | AE84: R01 | AF84: 0.03
J85: FMTR3 | K85: =IF(FEDM_HW="M",VLOOKUP(_FTG3,FTXTBLM,2),IF(FEDM_HW="A",VLOOKUP(_FTG3,FTXTBLMHW,2),IF(FEDM_HW="S",VLOOKUP(_FTG3,FTXTBLSH,2),IF(FEDM_HW="I",VLOOKUP(_FTG3,FTXTBLSHW,2),IF(FEDM_HW="H",VLOOKUP(_FTG3,FTXBLH,2),IF(FEDM_HW="E",VLOOKUP(_FTG3,FTXTBLHHW,2))))))) -> 0 | Z85: 2V | AA85: 0.09 | AB85: 317 | AC85: MED | AE85: R02 | AF85: 0.014
A86: Apply Exclusion Amt: An entry in this field is required only when calculating IDL/S for a semimonthly | J86: FMTR4 | K86: =IF(FEDM_HW="M",VLOOKUP(_FTG4,FTXTBLM,2),IF(FEDM_HW="A",VLOOKUP(_FTG4,FTXTBLMHW,2),IF(FEDM_HW="S",VLOOKUP(_FTG4,FTXTBLSH,2),IF(FEDM_HW="I",VLOOKUP(_FTG4,FTXTBLSHW,2),IF(FEDM_HW="H",VLOOKUP(_FTG4,FTXBLH,2),IF(FEDM_HW="E",VLOOKUP(_FTG4,FTXTBLHHW,2))))))) -> 0.12 | Z86: 2W | AA86: 0.09 | AB86: 513 | AC86: SS | AE86: R03 | AF86: 0.03
A87: employee. For all other employees, leave this field blank. | J87: FMTR5 | K87: =IF(FEDM_HW="M",VLOOKUP(_FTG5,FTXTBLM,2),IF(FEDM_HW="A",VLOOKUP(_FTG5,FTXTBLMHW,2),IF(FEDM_HW="S",VLOOKUP(_FTG5,FTXTBLSH,2),IF(FEDM_HW="I",VLOOKUP(_FTG5,FTXTBLSHW,2),IF(FEDM_HW="H",VLOOKUP(_FTG5,FTXBLH,2),IF(FEDM_HW="E",VLOOKUP(_FTG5,FTXTBLHHW,2))))))) -> 0.12 | Z87: 2X | AA87: 0.08 | AB87: 513 | AC87: SS | AE87: R04 | AF87: 0.03
A88: Enter "Y" or "Yes" when the Retirement Exclusion Amount is to be applied. | J88: FMTR6 | K88: =IF(FEDM_HW="M",VLOOKUP(_FTG6,FTXTBLM,2),IF(FEDM_HW="A",VLOOKUP(_FTG6,FTXTBLMHW,2),IF(FEDM_HW="S",VLOOKUP(_FTG6,FTXTBLSH,2),IF(FEDM_HW="I",VLOOKUP(_FTG6,FTXTBLSHW,2),IF(FEDM_HW="H",VLOOKUP(_FTG6,FTXBLH,2),IF(FEDM_HW="E",VLOOKUP(_FTG6,FTXTBLHHW,2))))))) -> 0.12 | Z88: 2Y | AA88: 0.08 | AB88: 513 | AC88: SS | AE88: R05 | AF88: 0.034
A89: Enter "N" or "No" when the Retirement Exclusion Amount is NOT to be applied. | Z89: 2Z | AA89: 0.05 | AB89: 513 | AC89: SS | AE89: R06 | AF89: 0.04
J90: BASE TAX AMOUNT | Z90: 30 | AA90: 0.105 | AB90: 317 | AC90: NO | AE90: R07 | AF90: 0.04
A91: SDI: When the Collective Bargaining Unit ID is entered, the calculator will automatically enter a | J91: FBST1 | K91: =IF(FEDM_HW="M",VLOOKUP(_FTG1,FTXTBLM,3),IF(FEDM_HW="A",VLOOKUP(_FTG1,FTXTBLMHW,3),IF(FEDM_HW="S",VLOOKUP(_FTG1,FTXTBLSH,3),IF(FEDM_HW="I",VLOOKUP(_FTG1,FTXTBLSHW,3),IF(FEDM_HW="H",VLOOKUP(_FTG1,FTXBLH,3),IF(FEDM_HW="E",VLOOKUP(_FTG1,FTXTBLHHW,3))))))) -> 0 | Z91: 31 | AA91: 0.08 | AB91: 238 | AC91: NO | AE91: R08 | AF91: 0.039
A92: a "Yes" or "No" in this field. | J92: FBST2 | K92: =IF(FEDM_HW="M",VLOOKUP(K68,FTXTBLM,3),IF(FEDM_HW="A",VLOOKUP(K68,FTXTBLMHW,3),IF(FEDM_HW="S",VLOOKUP(K68,FTXTBLSH,3),IF(FEDM_HW="I",VLOOKUP(K68,FTXTBLSHW,3),IF(FEDM_HW="H",VLOOKUP(K68,FTXBLH,3),IF(FEDM_HW="E",VLOOKUP(K68,FTXTBLHHW,3))))))) -> 0 | Z92: 32 | AA92: 0.08 | AB92: 238 | AC92: MED | AE92: R09 | AF92: 0.02
J93: FBST3 | K93: =IF(FEDM_HW="M",VLOOKUP(K69,FTXTBLM,3),IF(FEDM_HW="A",VLOOKUP(K69,FTXTBLMHW,3),IF(FEDM_HW="S",VLOOKUP(K69,FTXTBLSH,3),IF(FEDM_HW="I",VLOOKUP(K69,FTXTBLSHW,3),IF(FEDM_HW="H",VLOOKUP(K69,FTXBLH,3),IF(FEDM_HW="E",VLOOKUP(K69,FTXTBLHHW,3))))))) -> 0 | Z93: 33 | AA93: 0.01 | AB93: 317 | AC93: MED | AE93: R10 | AF93: 0.021
A94: Federal Filing Status: Enter the employee's exemptions based on the first date of disability per Government | J94: FBST4 | K94: =IF(FEDM_HW="M",VLOOKUP(K70,FTXTBLM,3),IF(FEDM_HW="A",VLOOKUP(K70,FTXTBLMHW,3),IF(FEDM_HW="S",VLOOKUP(K70,FTXTBLSH,3),IF(FEDM_HW="I",VLOOKUP(K70,FTXTBLSHW,3),IF(FEDM_HW="H",VLOOKUP(K70,FTXBLH,3),IF(FEDM_HW="E",VLOOKUP(K70,FTXTBLHHW,3))))))) -> 2320 | Z94: 34 | AA94: 0.06 | AB94: 238 | AC94: NO | AE94: R11 | AF94: 0.03
A95: Code 19871 for federal tax purposes. "S" for single/head of household; "M" for married. | J95: FBST5 | K95: =IF(FEDM_HW="M",VLOOKUP(K71,FTXTBLM,3),IF(FEDM_HW="A",VLOOKUP(K71,FTXTBLMHW,3),IF(FEDM_HW="S",VLOOKUP(K71,FTXTBLSH,3),IF(FEDM_HW="I",VLOOKUP(K71,FTXTBLSHW,3),IF(FEDM_HW="H",VLOOKUP(K71,FTXBLH,3),IF(FEDM_HW="E",VLOOKUP(K71,FTXTBLHHW,3))))))) -> 2320 | Z95: 36 | AA95: 0.13 | AB95: 513 | AC95: MED | AE95: R12 | AF95: 0.036
J96: FBST6 | K96: =IF(FEDM_HW="M",VLOOKUP(K72,FTXTBLM,3),IF(FEDM_HW="A",VLOOKUP(K72,FTXTBLMHW,3),IF(FEDM_HW="S",VLOOKUP(K72,FTXTBLSH,3),IF(FEDM_HW="I",VLOOKUP(K72,FTXTBLSHW,3),IF(FEDM_HW="H",VLOOKUP(K72,FTXBLH,3),IF(FEDM_HW="E",VLOOKUP(K72,FTXTBLHHW,3))))))) -> 2320 | Z96: 37 | AA96: 0.08 | AB96: 863 | AC96: NO | AE96: R13 | AF96: 0.035
A97: Total Fed Exemptions: Enter the total number of federal exemptions based on the first date of disability per | Z97: 39 | AA97: 0.08 | AB97: 238 | AC97: NO | AE97: R14 | AF97: 0.03
A98: Government Code 19871 for federal tax purposes. If the employee claims exempt from federal taxes, | J98: OVER BASE AMOUNT | Z98: 3A | AA98: 0.13 | AB98: 863 | AC98: NO | AE98: R15 | AF98: 0.03
A99: enter "99". | J99: FOVR1 | K99: =ROUND(_FTG1-FBSA1,2) -> 999999 | Z99: 3B | AA99: 0.13 | AB99: 863 | AC99: MED | AE99: R16 | AF99: 0.014
J100: FOVR2 | K100: =ROUND(K68-K76,2) -> 999999 | Z100: 3C | AA100: 0.13 | AB100: 863 | AC100: NO | AE100: R17 | AF100: 0.03
A101: Federal High Wage-Enter Y (Yes) for higher tax withholding, enter N (No) for not to higher tax withholding. | J101: FOVR3 | K101: =(K69-K77) -> 999999 | Z101: 3D | AA101: 0.13 | AB101: 863 | AC101: MED | AE101: R18 | AF101: 0.045
A102: This field must be completed when using revised STD 686 or STD 457 effective 12/2020. | J102: FOVR4 | K102: =(K70-K78) -> 8500 | Z102: 3E | AA102: 0.13 | AB102: 863 | AC102: NO | AE102: R19 | AF102: 0.03
J103: FOVR5 | K103: =(K71-K79) -> 8500 | Z103: 3F | AA103: 0.13 | AB103: 863 | AC103: MED | AE103: R20 | AF103: 0.03
A104: Federal Claim Dependents-Enter annual amount for Child Tax Credit and the credits for other dependents. | J104: FOVR6 | K104: =(K72-K80) -> 8500 | Z104: 3G | AA104: 0.1325 | AB104: 0 | AC104: NO | AE104: R21 | AF104: 0.03
A105: This field must be completed when using revised STD 686 or STD 457 effective 12/2020. | Z105: 3H | AA105: 0.1325 | AB105: 0 | AC105: MED | AE105: S01 | AF105: 0.03
J106: ANNUALIZED TAX | Z106: 3J | AA106: 0.095 | AB106: 317 | AC106: NO | AE106: S02 | AF106: 0.014
A107: Federal Other Income-Enter dollar amount for other income for the year, do not include income from other jobs. | J107: FTA1 | K107: =MAX(IF(FedHW="",(FBST1+ROUND(FOVR1*FMTR1,5)),(FBST1+ROUND((FOVR1*FMTR1)-Fed_Claim_Dpnts,5))),0) -> 0 | Z107: 3K | AA107: 0.08 | AB107: 513 | AC107: MED | AE107: S03 | AF107: 0.03
A108: This field must be completed when using revised STD 686 or STD 457 effective 12/2020. | J108: FTA2 | K108: =MAX(IF(FedHW="",(FBST2+ROUND(FOVR2*FMTR2,5)),(FBST2+ROUND((FOVR2*FMTR2)-Fed_Claim_Dpnts,5))),0) -> 0 | Z108: 3L | AA108: 0.11 | AB108: 863 | AC108: NO | AE108: S04 | AF108: 0.03
J109: FTA3 | K109: =MAX(IF(FedHW="",(FBST3+ROUND(FOVR3*FMTR3,5)),(FBST3+ROUND((FOVR3*FMTR3)-Fed_Claim_Dpnts,5))),0) -> 0 | Z109: 3M | AA109: 0.13 | AB109: 863 | AC109: MED | AE109: S05 | AF109: 0.034
A110: Federal Deductions-Enter amount for other than the basic standard deductions. | J110: FTA4 | K110: =IF(FedHW="",(FBST4+ROUND(FOVR4*FMTR4,5)),(FBST4+ROUND((FOVR4*FMTR4)-Fed_Claim_Dpnts,5))) -> 3340 | Z110: 3N | AA110: 0.08 | AB110: 238 | AC110: NO | AE110: S06 | AF110: 0.04
A111: This field must be completed when using revised STD 686 or STD 457 effective 12/2020. | J111: FTA5 | K111: =MAX(IF(FedHW="",(FBST5+ROUND(FOVR5*FMTR5,5)),(FBST5+ROUND((FOVR5*FMTR5)-Fed_Claim_Dpnts,5))),0) -> 3340 | Z111: 3P | AA111: 0.08 | AB111: 238 | AC111: MED | AE111: S07 | AF111: 0.04
J112: FTA18 | K112: =MAX(IF(FedHW="",(FBST6+ROUND(FOVR6*FMTR6,5)),(FBST6+ROUND((FOVR6*FMTR6)-Fed_Claim_Dpnts,5))),0) -> 3340 | Z112: 3Q | AA112: 0.08 | AB112: 238 | AC112: NO | AE112: S08 | AF112: 0.039
A113: State Filing Status: Enter the employee's filing status based on the first date of disability per Government | Z113: 3R | AA113: 0.08 | AB113: 238 | AC113: MED | AE113: S09 | AF113: 0.02
A114: Code 19871 for state tax purposes. (NOTE: This calculates only the California state tax). "S" for | J114: PAY PERIOD TAX | Z114: 3S | AA114: 0.125 | AB114: 863 | AC114: NO | AE114: S10 | AF114: 0.021
A115: single; "H" for head of household; "M" for married. | J115: FTAX1 | K115: =IF(FEDM="E",0,(ROUND(_FTA1/PAYFACT,2))) -> 0 | Z115: 3T | AA115: 0.13 | AB115: 863 | AC115: MED | AE115: S11 | AF115: 0.03
J116: FTAX2 | K116: =IF(FEDM="E",0,(ROUND(K108/PAYFACT,2))) -> 0 | Z116: 3U | AA116: 0.125 | AB116: 863 | AC116: NO | AE116: S12 | AF116: 0.036
A117: Reg State Allowance: Enter the number of regular state allowances (Standard Deductions) based on the | J117: FTAX3 | K117: =IF(FEDM="E",0,(ROUND(K109/PAYFACT,2))) -> 0 | Z117: 3V | AA117: 0.125 | AB117: 863 | AC117: MED | AE117: S13 | AF117: 0.035
A118: first date of disability per Government Code 19871 for state tax purposes. If the employee claims exempt | J118: FTAX4 | K118: =IF(FEDM="E",0,(ROUND(K110/PAYFACT,2))) -> 278.33 | Z118: 3W | AA118: 0.1325 | AB118: 0 | AC118: NO | AE118: S14 | AF118: 0.03
A119: from state taxes, enter "99". | J119: FTAX5 | K119: =IF(FEDM="E",0,(ROUND(K111/PAYFACT,2))) -> 278.33 | Z119: 3X | AA119: 0.1 | AB119: 513 | AC119: NO | AE119: S15 | AF119: 0.03
J120: FTAX6 | K120: =IF(FEDM="E",0,(ROUND(K112/PAYFACT,2))) -> 278.33 | Z120: 3Y | AA120: 0.13 | AB120: 513 | AC120: MED | AE120: S16 | AF120: 0.014
A121: Additional Exemptions State: Enter the number of additional state allowances based on the first date of | Z121: 3Z | AA121: 0.1325 | AB121: 0 | AC121: MED | AE121: S17 | AF121: 0.03
A122: disability per Government Code 19871 for state tax purposes. If the employee claims exempt from | J122: STATE TAXES | Z122: 40 | AA122: 0.105 | AB122: 317 | AC122: NO | AE122: S18 | AF122: 0.045
A123: state taxes, leave field BLANK. | J123: LIE | K123: =IF(STM="S",LIES1,IF(AND(STM="M",STE<2),LIEM1,IF(AND(STM="M",STE>=2),LIEM2,IF(STM="H",LIEH1,99999)))) -> 17769 | Z123: 41 | AA123: 0.0375 | AB123: 0 | AC123: SS | AE123: S19 | AF123: 0.03
J124: ADDALLOW1 | K124: =(STA*SADDALL1) -> 0 | Z124: 42 | AA124: 0.06 | AB124: 317 | AC124: MED | AE124: S20 | AF124: 0.03
A125: Issue Month and Year: Enter the calendar month/year that corresponds to the Issue Date of the | J125: SDED1 | K125: =IF(STM="S",_SDS1,IF(AND(STM="M",STE<2),_SDM1,IF(AND(STM="M",STE>=2),_SDM2,IF(STM="H",_SDH1,0)))) -> 5363 | Z125: 43 | AA125: 0.05 | AB125: 513 | AC125: SS | AE125: S21 | AF125: 0.03
A126: payment. | J126: TXCRB | K126: =IF(AND(B17="S",D17=0),AM60,IF(AND(B17="S",D17=1),AN60,IF(AND(B17="S",D17>=2),AO60,IF(AND(B17="M",D17=0),AM61,IF(OR(AND(B17="M",B17="H"),D17=1),AN61,IF(OR(AND(B17="M",B17="H"),D17>=2),AO61,0)))))) -> 0 | Z126: 44 | AA126: 0.0375 | AB126: 0 | AC126: SS
J127: TXCROV | K127: =IF(STE<3,0,STE-2) -> 0 | Z127: 45 | AA127: 0.08 | AB127: 513 | AC127: SS
A128: For semi-monthly first half pay period IDL/S calculations, enter the pay period and year of the | J128: TXCRR | K128: =IF(STM="S",TCRS3,TCRM3) -> 158.4 | Z128: 46 | AA128: 0.06 | AB128: 317 | AC128: NO
A129: Regular Pay payment. For all other IDL/S calculations (second half and monthly pay periods), | J129: TXCREDIT | K129: =(TXCRB+(TXCROV*TXCRR)) -> 0 | Z129: 47 | AA129: 0.0375 | AB129: 0 | AC129: SS
A130: enter the next month and year of the Reguar Pay payment's pay period. | Z130: 48 | AA130: 0.06 | AB130: 317 | AC130: MED
J131: STATE ANNUALIZED TAXABLE GROSS | Z131: 49 | AA131: 0.095 | AB131: 513 | AC131: SS
A132: Example: For the first half of the 05/2009 pay period, enter 05/09. For the second half of the | J132: STG1 | K132: =IF((PAYFACT*_TG1)-ADDALLOW1-SDED1<=0,0,(PAYFACT*_TG1)-ADDALLOW1-SDED1) -> 0 | Z132: 4A | AA132: 0.085 | AB132: 513 | AC132: SS
A133: 05/2009 pay period of the monthly pay period with an issue date of 06/01/09, enter 06/09. | J133: STG2 | K133: =IF((PAYFACT*_TG2)-ADDALLOW1-SDED1<=0,0,(PAYFACT*_TG2)-ADDALLOW1-SDED1) -> 0 | Z133: 4B | AA133: 0.08 | AB133: 513 | AC133: SS
J134: STG3 | K134: =IF((PAYFACT*_TG3)-ADDALLOW1-SDED1<=0,0,(PAYFACT*_TG3)-ADDALLOW1-SDED1) -> 0 | Z134: 4C | AA134: 0.06 | AB134: 317 | AC134: NO
A135: Regular Pay: Enter the days and/or hours for regular pay in the pay period. | J135: STG4 | K135: =IF((PAYFACT*_TG4)-ADDALLOW1-SDED1<=0,0,(PAYFACT*_TG4)-ADDALLOW1-SDED1) -> 42637 | Z135: 4D | AA135: 0.0375 | AB135: 0 | AC135: SS
J136: STG5 | K136: =IF((PAYFACT*_TG5)-ADDALLOW1-SDED1<=0,0,(PAYFACT*_TG5)-ADDALLOW1-SDED1) -> 42637 | Z136: 4E | AA136: 0.0375 | AB136: 0 | AC136: SS
A137: IDL Full Pay: Enter the days and/or hours for IDL Full in the pay period. | J137: STG6 | K137: =IF((PAYFACT*_TG6)-ADDALLOW1-SDED1<=0,0,(PAYFACT*_TG6)-ADDALLOW1-SDED1) -> 42637 | Z137: 4F | AA137: 0.0375 | AB137: 0 | AC137: SS
Z138: 4G | AA138: 0.09 | AB138: 513 | AC138: SS
A139: IDL 2/3 Pay: Enter the days and/or hours for IDL 2/3's in the pay period. | J139: BASE AMOUNT | Z139: 4H | AA139: 0.09 | AB139: 513 | AC139: SS
J140: SBSA1 | K140: =IF(STM="S",VLOOKUP(_STG1,STXTBLS1,1),IF(STM="M",VLOOKUP(_STG1,STXTBLM1,1),IF(STM="H",VLOOKUP(_STG1,STXTBLH1,1),0))) -> 0 | Z140: 4J | AA140: 0.03 | AB140: 513 | AC140: SS
A141: After entering and verifying the required fields, click the "Calculate IDLS" button. | J141: SBSA2 | K141: =IF(STM="S",VLOOKUP(K133,STXTBLS1,1),IF(STM="M",VLOOKUP(K133,STXTBLM1,1),IF(STM="H",VLOOKUP(K133,STXTBLH1,1),0))) -> 0 | Z141: 4K | AA141: 0.07 | AB141: 317 | AC141: NO
J142: SBSA3 | K142: =IF(STM="S",VLOOKUP(K134,STXTBLS1,1),IF(STM="M",VLOOKUP(K134,STXTBLM1,1),IF(STM="H",VLOOKUP(K134,STXTBLH1,1),0))) -> 0 | Z142: 4L | AA142: 0.08 | AB142: 513 | AC142: SS
A143: To reset the input fields, click the "Reset Fields" button. | J143: SBSA4 | K143: =IF(STM="S",VLOOKUP(K135,STXTBLS1,1),IF(STM="M",VLOOKUP(K135,STXTBLM1,1),IF(STM="H",VLOOKUP(K135,STXTBLH1,1),0))) -> 20824 | Z143: 4M | AA143: 0.11 | AB143: 317 | AC143: NO
J144: SBSA5 | K144: =IF(STM="S",VLOOKUP(K136,STXTBLS1,1),IF(STM="M",VLOOKUP(K136,STXTBLM1,1),IF(STM="H",VLOOKUP(K136,STXTBLH1,1),0))) -> 20824 | Z144: 4N | AA144: 0.11 | AB144: 317 | AC144: MED
J145: SBSA6 | K145: =IF(STM="S",VLOOKUP(K137,STXTBLS1,1),IF(STM="M",VLOOKUP(K137,STXTBLM1,1),IF(STM="H",VLOOKUP(K137,STXTBLH1,1),0))) -> 20824 | Z145: 4P | AA145: 0.08 | AB145: 513 | AC145: SS
Z146: 4Q | AA146: 0.08 | AB146: 513 | AC146: SS
J147: MARGINAL TAX RATE | Z147: 4R | AA147: 0.0375 | AB147: 0 | AC147: SS
J148: SMTR1 | K148: =IF(STM="S",VLOOKUP(_STG1,STXTBLS1,2),IF(STM="M",VLOOKUP(_STG1,STXTBLM1,2),IF(STM="H",VLOOKUP(_STG1,STXTBLH1,2),0))) -> 0.011 | Z148: 4S | AA148: 0.0375 | AB148: 0 | AC148: SS
J149: SMTR2 | K149: =IF(STM="S",VLOOKUP(K133,STXTBLS1,2),IF(STM="M",VLOOKUP(K133,STXTBLM1,2),IF(STM="H",VLOOKUP(K133,STXTBLH1,2),0))) -> 0.011 | Z149: 4T | AA149: 0.1 | AB149: 513 | AC149: SS
J150: SMTR3 | K150: =IF(STM="S",VLOOKUP(K134,STXTBLS1,2),IF(STM="M",VLOOKUP(K134,STXTBLM1,2),IF(STM="H",VLOOKUP(K134,STXTBLH1,2),0))) -> 0.011 | Z150: 4U | AA150: 0.08 | AB150: 0 | AC150: NO
J151: SMTR4 | K151: =IF(STM="S",VLOOKUP(K135,STXTBLS1,2),IF(STM="M",VLOOKUP(K135,STXTBLM1,2),IF(STM="H",VLOOKUP(K135,STXTBLH1,2),0))) -> 0.022 | Z151: 4V | AA151: 0.08 | AB151: 513 | AC151: SS
J152: SMTR5 | K152: =IF(STM="S",VLOOKUP(K136,STXTBLS1,2),IF(STM="M",VLOOKUP(K136,STXTBLM1,2),IF(STM="H",VLOOKUP(K136,STXTBLH1,2),0))) -> 0.022 | Z152: 4W | AA152: 0.1 | AB152: 513 | AC152: SS
J153: SMTR6 | K153: =IF(STM="S",VLOOKUP(K137,STXTBLS1,2),IF(STM="M",VLOOKUP(K137,STXTBLM1,2),IF(STM="H",VLOOKUP(K137,STXTBLH1,2),0))) -> 0.022 | Z153: 4X | AA153: 0.095 | AB153: 513 | AC153: SS
Z154: 4Y | AA154: 0.0375 | AB154: 0 | AC154: SS
J155: BASE TAX AMOUNT | Z155: 4Z | AA155: 0 | AB155: 0 | AC155: SS
J156: SBST1 | K156: =IF(STM="S",VLOOKUP(_STG1,STXTBLS1,3),IF(STM="M",VLOOKUP(_STG1,STXTBLM1,3),IF(STM="H",VLOOKUP(_STG1,STXTBLH1,3),0))) -> 0 | Z156: 50 | AA156: 0.08 | AB156: 238 | AC156: MED
J157: SBST2 | K157: =IF(STM="S",VLOOKUP(K133,STXTBLS1,3),IF(STM="M",VLOOKUP(K133,STXTBLM1,3),IF(STM="H",VLOOKUP(K133,STXTBLH1,3),0))) -> 0 | Z157: 51 | AA157: 0.08 | AB157: 238 | AC157: NO
J158: SBST3 | K158: =IF(STM="S",VLOOKUP(K134,STXTBLS1,3),IF(STM="M",VLOOKUP(K134,STXTBLM1,3),IF(STM="H",VLOOKUP(K134,STXTBLH1,3),0))) -> 0 | Z158: 52 | AA158: 0.08 | AB158: 238 | AC158: MED
J159: SBST4 | K159: =IF(STM="S",VLOOKUP(K135,STXTBLS1,3),IF(STM="M",VLOOKUP(K135,STXTBLM1,3),IF(STM="H",VLOOKUP(K135,STXTBLH1,3),0))) -> 229.06 | Z159: 53 | AA159: 0.08 | AB159: 238 | AC159: NO
J160: SBST5 | K160: =IF(STM="S",VLOOKUP(K136,STXTBLS1,3),IF(STM="M",VLOOKUP(K136,STXTBLM1,3),IF(STM="H",VLOOKUP(K136,STXTBLH1,3),0))) -> 229.06 | Z160: 54 | AA160: 0.08 | AB160: 238 | AC160: MED
J161: SBST6 | K161: =IF(STM="S",VLOOKUP(K137,STXTBLS1,3),IF(STM="M",VLOOKUP(K137,STXTBLM1,3),IF(STM="H",VLOOKUP(K137,STXTBLH1,3),0))) -> 229.06 | Z161: 55 | AA161: 0.13 | AB161: 863 | AC161: NO
Z162: 56 | AA162: 0.08 | AB162: 863 | AC162: MED
J163: OVER BASE AMOUNT | Z163: 57 | AA163: 0.08 | AB163: 513 | AC163: NO
J164: SOVR1 | K164: =ROUND(_STG1-SBSA1,2) -> 0 | Z164: 58 | AA164: 0.08 | AB164: 513 | AC164: MED
J165: SOVR2 | K165: =ROUND(K133-K141,2) -> 0 | Z165: 5A | AA165: 0.06 | AB165: 513 | AC165: NO
J166: SOVR3 | K166: =ROUND(K134-K142,2) -> 0 | Z166: 5B | AA166: 0.15 | AB166: 863 | AC166: MED
J167: SOVR4 | K167: =ROUND(K135-K143,2) -> 21813 | Z167: 5C | AA167: 0.13 | AB167: 513 | AC167: NO
J168: SOVR5 | K168: =ROUND(K136-K144,2) -> 21813 | Z168: 5D | AA168: 0.13 | AB168: 513 | AC168: MED
J169: SOVR6 | K169: =ROUND(K137-K145,2) -> 21813 | Z169: 5E | AA169: 0.13 | AB169: 513 | AC169: NO
Z170: 5F | AA170: 0.13 | AB170: 513 | AC170: MED
J171: ANNUALIZED TAX | Z171: 5G | AA171: 0.13 | AB171: 513 | AC171: NO
J172: STA1 | K172: =(SBST1+ROUND(SOVR1*SMTR1,5)) -> 0 | Z172: 5H | AA172: 0.13 | AB172: 513 | AC172: MED
J173: STA2 | K173: =(K157+ROUND(K165*SMTR2,5)) -> 0 | Z173: 5J | AA173: 0.13 | AB173: 863 | AC173: NO
J174: STA3 | K174: =(K158+ROUND(K166*SMTR3,5)) -> 0 | Z174: 5K | AA174: 0.13 | AB174: 863 | AC174: MED
J175: STA4 | K175: =(K159+ROUND(K167*SMTR4,5)) -> 708.946 | Z175: 5L | AA175: 0.06 | AB175: 513 | AC175: NO
J176: STA5 | K176: =(K160+ROUND(K168*SMTR5,5)) -> 708.946 | Z176: 5M | AA176: 0.06 | AB176: 513 | AC176: MED
J177: STA6 | K177: =(K161+ROUND(K169*SMTR6,5)) -> 708.946 | Z177: 5N | AA177: 0.15 | AB177: 513 | AC177: MED
Z178: 5P | AA178: 0.06 | AB178: 513 | AC178: MED
J179: PAY PERIOD TAX | Z179: 5R | AA179: 0.14 | AB179: 513 | AC179: MED
J180: STAX1 | K180: =IF(OR(_TG1*PAYFACT<=LIE,(_STA1-TXCREDIT)/PAYFACT<=0),0,IF(_STA1-TXCREDIT/PAYFACT>0,ROUND((_STA1-TXCREDIT)/PAYFACT,2))) -> 0 | Z180: 5S | AA180: 0.15 | AB180: 513 | AC180: NO
J181: STAX2 | K181: =IF(OR(_TG2*PAYFACT<=LIE,(K173-TXCREDIT)/PAYFACT<=0),0,IF(K173-TXCREDIT/PAYFACT>0,ROUND((K173-TXCREDIT)/PAYFACT,2))) -> 0 | Z181: 5V | AA181: 0.13 | AB181: 513 | AC181: MED
J182: STAX3 | K182: =IF(OR(_TG3*PAYFACT<=LIE,(K174-TXCREDIT)/PAYFACT<=0),0,IF(K174-TXCREDIT/PAYFACT>0,ROUND((K174-TXCREDIT)/PAYFACT,2))) -> 0 | Z182: 5W | AA182: 0.11 | AB182: 863 | AC182: NO
J183: STAX4 | K183: =IF(OR(_TG4*PAYFACT<=LIE,(K175-TXCREDIT)/PAYFACT<=0),0,IF(K175-TXCREDIT/PAYFACT>0,ROUND((K175-TXCREDIT)/PAYFACT,2))) -> 59.08 | Z183: 5X | AA183: 0.13 | AB183: 863 | AC183: MED
J184: STAX5 | K184: =IF(OR(_TG4*PAYFACT<=LIE,(K176-TXCREDIT)/PAYFACT<=0),0,IF(K176-TXCREDIT/PAYFACT>0,ROUND((K176-TXCREDIT)/PAYFACT,2))) -> 59.08 | Z184: 5Y | AA184: 0.11 | AB184: 513 | AC184: NO
J185: STAX6 | K185: =IF(OR(_TG6*PAYFACT<=LIE,(K177-TXCREDIT)/PAYFACT<=0),0,IF(K177-TXCREDIT/PAYFACT>0,ROUND((K177-TXCREDIT)/PAYFACT,2))) -> 59.08 | Z185: 61 | AA185: 0.135 | AB185: 863 | AC185: MED
Z186: 62 | AA186: 0.125 | AB186: 863 | AC186: NO
Z187: 63 | AA187: 0.08 | AB187: 238 | AC187: MED
Z188: 64 | AA188: 0.08 | AB188: 317 | AC188: NO
Z189: 67 | AA189: 0.01 | AB189: 317 | AC189: MED
Z190: 68 | AA190: 0.01 | AB190: 317 | AC190: NO
Z191: 6J | AA191: 0.115 | AB191: 317 | AC191: MED
Z192: 6K | AA192: 0.11 | AB192: 317 | AC192: NO
Z193: 6L | AA193: 0.11 | AB193: 317 | AC193: MED
Z194: 6M | AA194: 0.07 | AB194: 317 | AC194: NO
Z195: 6P | AA195: 0.11 | AB195: 317 | AC195: MED
Z196: 6R | AA196: 0.11 | AB196: 317 | AC196: NO
Z197: 6S | AA197: 0.135 | AB197: 863 | AC197: NO
Z198: 6T | AA198: 0.135 | AB198: 863 | AC198: MED
Z199: 6V | AA199: 0.1 | AB199: 317 | AC199: MED
Z200: 6W | AA200: 0.1 | AB200: 317 | AC200: NO
... 275 more rows
